bitfinex/quotes_SOLUSD_20240702
["timestamp","ask_amount","ask_price","bid_price","bid_amount"]
[1719902733188,20.0,148.3,148.21,15.6065]
[1719902733189,13.0316782,148.29,148.21,15.6065]
[1719902733406,12.29,148.26,148.23,6.7461]
[1719902733570,12.29,148.26,148.21,12.29]
[1719902733571,12.29,148.26,148.22,6.7465]
[1719902733767,0.7416782,148.27,148.23,6.7459]
[1719902733977,12.29,148.27,148.23,6.7459]
[1719902734368,13.0316782,148.27,148.23,6.7459]
[1719902734578,19.7761782,148.27,148.23,6.7459]
[1719902734974,20.0,148.26,148.23,6.7459]
[1719902735407,32.29,148.26,148.23,6.7459]
[1719902736776,32.29,148.26,148.24,6.7457]
[1719902737989,0.7416782,148.25,148.22,23.6125]
[1719902738192,12.29,148.24,148.19,16.8694]
[1719902738391,0.7416782,148.25,148.19,16.8694]
[1719902738392,12.29,148.22,148.19,16.8694]
[1719902738694,12.29,148.22,148.19,23.6174]
[1719902739601,7.0209782,148.25,148.21,6.7468]
[1719902739786,12.29,148.23,148.21,6.7468]
[1719902739990,20.0,148.22,148.21,6.7468]
[1719902740506,13.0316782,148.23,148.21,6.7468]
[1719902741009,20.0,148.22,148.21,6.7468]
[1719902741903,0.7416782,148.26,148.24,6.7455]
[1719902742208,20.0,148.25,148.22,16.8667]
[1719902742393,20.0,148.25,148.24,6.7458]
[1719902743016,20.0,148.25,148.23,6.7461]
[1719902743225,20.0,148.26,148.23,6.7461]
[1719902746890,20.0,148.26,148.19,100.0]
[1719902746891,20.7416782,148.27,148.24,16.8639]
[1719902747089,20.7416782,148.27,148.25,6.7451]
[1719902747414,20.0,148.27,148.25,6.7451]
[1719902748304,20.0,148.27,148.24,23.6095]
[1719902748992,7.4846782,148.31,148.26,6.7449]
[1719902749209,12.29,148.31,148.27,6.7442]
[1719902750116,19.0329,148.31,148.27,6.7442]
[1719902750489,20.0,148.3,148.27,6.7442]
[1719902751587,20.0,148.3,148.26,35.8965]
[1719902751792,20.0,148.3,148.27,6.7443]
[1719902752091,20.0,148.3,148.27,12.29]
[1719902752314,20.0,148.31,148.3,6.743]
[1719902753297,20.0,148.31,148.3,12.29]
[1719902753906,20.0,148.31,148.29,6.7432]
[1719902754099,20.8406834,148.33,148.29,19.0332]
[1719902754298,20.8406834,148.33,148.3,12.29]
[1719902754515,0.8406834,148.33,148.31,12.29]
[1719902754715,0.8406834,148.33,148.31,19.0323]
[1719902755408,0.8406834,148.33,148.32,19.0321]
[1719902761710,0.8406834,148.33,148.32,6.7421]
[1719902761933,0.8406834,148.33,148.32,19.0321]
[1719902762219,0.8406834,148.33,148.32,6.7421]
[1719902762431,0.8406834,148.33,148.31,6.7425]
[1719902762605,0.8406834,148.33,148.32,6.7421]
[1719902762804,0.8406834,148.33,148.3,23.6]
[1719902763309,0.8406834,148.33,148.22,33.7332]
[1719902763310,0.8406834,148.33,148.27,16.861]
[1719902763625,6.7425,148.32,148.28,6.7439]
[1719902763805,20.0,148.31,148.29,6.7434]
[1719902765730,20.0,148.31,148.27,35.895]
[1719902766228,20.0,148.31,148.27,23.605]
[1719902766817,20.0,148.31,148.28,6.7438]
[1719902768318,20.0,148.31,148.28,19.0338]
[1719902768516,20.7416782,148.32,148.28,19.0338]
[1719902769028,0.8406834,148.33,148.29,29.1482]
[1719902769331,0.8406834,148.33,148.3,6.7426]
[1719902769508,1.5823616,148.33,148.3,6.7426]
[1719902770431,33.8723616,148.33,148.3,6.7426]
[1719902770730,33.8723616,148.33,148.29,23.6016]
[1719902772135,33.8723616,148.33,148.3,6.743]
[1719902772333,33.8723616,148.33,148.31,6.7425]
[1719902772334,20.8406834,148.33,148.31,6.7425]
[1719902772808,20.8406834,148.33,148.3,6.7429]
[1719902773015,20.0,148.32,148.3,6.7429]
[1719902773214,0.8406834,148.33,148.3,6.7429]
[1719902773629,0.8406834,148.33,148.29,35.8915]
[1719902774139,7.5824834,148.33,148.29,35.8915]
[1719902774435,20.0,148.32,148.29,35.8915]
[1719902776034,12.29,148.31,148.26,35.8962]
[1719902776219,20.7416782,148.3,148.26,35.8962]
[1719902776417,20.7416782,148.3,148.27,6.7444]
[1719902777314,0.7416782,148.29,148.26,16.8617]
[1719902777534,32.29,148.3,148.26,23.6063]
[1719902777735,33.0316782,148.3,148.27,6.7444]
[1719902777916,20.0,148.3,148.28,23.6035]
[1719902778316,20.7416782,148.31,148.28,23.6035]
[1719902779132,20.7416782,148.31,148.27,19.0343]
[1719902779342,39.7744782,148.31,148.25,29.1525]
[1719902779541,0.7416782,148.3,148.27,6.744]
[1719902779717,0.7416782,148.3,148.27,16.8608]
[1719902781050,13.0316782,148.3,148.27,16.8608]
[1719902781343,0.7416782,148.29,148.27,16.8608]
[1719902781737,0.7416782,148.29,148.27,23.6051]
[1719902782045,13.0316782,148.3,148.27,23.6051]
[1719902782431,0.7416782,148.3,148.28,6.7439]
[1719902783042,0.7416782,148.3,148.27,23.6051]
[1719902783550,0.7416782,148.3,148.28,6.7439]
[1719902784323,20.0,148.31,148.27,16.8608]
[1719902784531,12.29,148.31,148.28,6.7438]
[1719902784735,20.0,148.3,148.28,6.7438]
[1719902790765,20.0,148.3,148.29,6.7435]
[1719902791050,20.0,148.3,148.27,16.8608]
[1719902791247,7.1761834,148.33,148.28,6.7438]
[1719902791248,12.29,148.31,148.28,6.7438]
[1719902791551,32.29,148.3,148.28,6.7438]
[1719902795457,32.29,148.3,148.29,6.7435]
[1719902795458,20.0,148.3,148.29,6.7435]
[1719902795662,20.0,148.3,148.28,6.7438]
[1719902796460,20.0,148.3,148.27,16.8608]
[1719902796645,20.0,148.3,148.27,23.6051]
[1719902796945,32.29,148.3,148.27,23.6051]
[1719902797785,13.0316782,148.29,148.26,6.7448]
[1719902797948,13.0316782,148.29,148.24,16.864]
[1719902797949,12.29,148.28,148.25,6.7452]
[1719902799454,12.29,148.28,148.26,6.7448]
[1719902800362,12.29,148.27,148.26,6.7448]
[1719902800564,12.29,148.28,148.26,6.7448]
[1719902801375,12.29,148.28,148.25,6.7452]
[1719902802054,12.29,148.28,148.26,6.7448]
[1719902804152,13.0316782,148.29,148.26,6.7448]
[1719902804381,20.0,148.28,148.26,6.7448]
[1719902810858,33.0316782,148.29,148.26,6.7448]
[1719902811879,20.7416782,148.29,148.26,6.7448]
[1719902816063,1.5823616,148.33,148.3,6.743]
[1719902816379,0.8406834,148.33,148.3,6.743]
[1719902819395,20.8406834,148.33,148.3,6.743]
[1719902820087,20.8406834,148.33,148.3,35.89]
[1719902820271,0.8406834,148.33,148.3,35.89]
[1719902820465,7.5827834,148.33,148.3,12.29]
[1719902820788,7.5827834,148.33,148.27,16.8606]
[1719902820789,12.29,148.31,148.27,16.8606]
[1719902821279,6.7431,148.3,148.27,16.8606]
[1719902821474,19.0327,148.31,148.27,23.605]
[1719902822077,0.7416782,148.3,148.27,16.8606]
[1719902822285,39.7747782,148.3,148.26,6.7447]
[1719902822591,39.0331,148.3,148.26,6.7447]
[1719902822887,12.29,148.29,148.26,6.7447]
[1719902823071,12.29,148.29,148.24,29.1539]
[1719902823072,32.29,148.28,148.24,16.8639]
[1719902823271,12.29,148.28,148.24,16.8639]
[1719902823484,12.29,148.27,148.24,16.8639]
[1719902823987,12.29,148.28,148.24,16.8639]
[1719902824188,12.29,148.28,148.24,23.6093]
[1719902824389,12.29,148.27,148.24,23.6093]
[1719902825272,12.29,148.28,148.24,23.6093]
[1719902825795,0.7416782,148.27,148.24,23.6093]
[1719902826578,13.0316782,148.28,148.24,23.6093]
[1719902827084,19.7756782,148.28,148.24,23.6093]
[1719902827793,13.0316782,148.28,148.25,6.7451]
[1719902828781,13.0316782,148.28,148.24,23.6095]
[1719902829087,19.7756782,148.28,148.24,23.6095]
[1719902829291,12.29,148.26,148.21,16.8676]
[1719902829489,19.7768782,148.26,148.21,23.6146]
[1719902829796,19.7768782,148.26,148.22,6.7466]
[1719902830088,12.29,148.25,148.22,6.7466]
[1719902830294,12.29,148.25,148.18,16.8704]
[1719902830601,0.7416782,148.24,148.21,6.7471]
[1719902832293,13.0316782,148.25,148.22,6.7467]
[1719902832490,12.29,148.24,148.2,16.8688]
[1719902832691,33.0316782,148.23,148.2,16.8688]
[1719902832887,12.29,148.21,148.17,23.6206]
[1719902833093,0.7416782,148.2,148.17,23.6206]
[1719902833684,12.29,148.21,148.17,16.8717]
[1719902833685,0.7416782,148.21,148.17,16.8717]
[1719902833889,20.7416782,148.21,148.17,29.1617]
[1719902834605,20.7416782,148.21,148.19,6.748]
[1719902835271,20.7416782,148.21,148.17,35.9102]
[1719902835478,0.7416782,148.2,148.15,6.7495]
[1719902835695,12.29,148.19,148.15,6.7495]
[1719902836809,19.7795782,148.2,148.16,6.7493]
[1719902837979,7.4895782,148.2,148.16,6.7493]
[1719902838189,13.0316782,148.2,148.16,6.7493]
[1719902838806,0.7416782,148.24,148.17,100.0]
[1719902839001,12.29,148.24,148.21,6.747]
[1719902839199,16.3803,148.26,148.2,6.7475]
[1719902839200,13.0316782,148.23,148.2,6.7475]
[1719902839507,12.29,148.23,148.2,6.7475]
[1719902840007,0.7416782,148.25,148.19,16.8702]
[1719902840309,12.29,148.24,148.21,6.747]
[1719902840489,20.0,148.23,148.21,6.747]
[1719902840704,12.29,148.25,148.22,23.6131]
[1719902840998,20.0,148.24,148.22,23.6131]
[1719902842811,20.0,148.24,148.22,16.8666]
[1719902843305,32.29,148.24,148.21,6.747]
[1719902845790,39.7775782,148.24,148.2,6.7475]
[1719902845989,0.7416782,148.23,148.2,6.7475]
[1719902847321,13.0316782,148.23,148.2,6.7475]
[1719902847494,0.7416782,148.23,148.2,6.7475]
[1719902847694,13.0316782,148.23,148.2,6.7475]
[1719902847908,12.29,148.23,148.2,6.7475]
[1719902848325,13.0316782,148.24,148.2,6.7475]
[1719902848622,0.7416782,148.23,148.2,6.7475]
[1719902850625,19.0375,148.21,148.16,23.6222]
[1719902850794,0.7416782,148.2,148.16,23.6222]
[1719902851115,7.4893782,148.2,148.16,23.6222]
[1719902851289,19.7793782,148.2,148.16,23.6222]
[1719902851491,0.7416782,148.19,148.16,23.6222]
[1719902852222,0.7416782,148.19,148.16,6.7494]
[1719902853264,13.0316782,148.2,148.17,6.7489]
[1719902855193,0.7416782,148.2,148.17,6.7489]
[1719902856898,19.0389,148.18,148.13,6.7505]
[1719902857106,0.7416782,148.17,148.13,6.7505]
[1719902857311,33.0316782,148.17,148.13,6.7505]
[1719902857629,39.7806782,148.17,148.13,6.7505]
[1719902857929,32.29,148.17,148.13,6.7505]
[1719902858105,32.29,148.17,148.14,6.7502]
[1719902860131,20.0,148.17,148.14,6.7502]
[1719902863023,32.29,148.17,148.14,6.7502]
[1719902864334,13.0316782,148.16,148.12,23.6285]
[1719902865225,19.7811782,148.16,148.12,23.6285]
[1719902865544,13.0316782,148.16,148.12,23.6285]
[1719902866337,13.0316782,148.16,148.13,6.7505]
[1719902869713,13.0316782,148.16,148.14,6.7503]
[1719902870815,0.7416782,148.16,148.14,6.7503]
[1719902871137,0.7416782,148.16,148.15,6.7499]
[1719902871138,32.29,148.16,148.15,6.7499]
[1719902871317,20.0,148.16,148.15,6.7499]
[1719902871730,13.0316782,148.17,148.15,6.7499]
[1719902871929,12.29,148.17,148.15,6.7497]
[1719902873426,0.7416782,148.19,148.17,6.7489]
[1719902873630,13.0316782,148.19,148.17,6.7489]
[1719902873937,0.7416782,148.19,148.17,6.7489]
[1719902874323,29.0295782,148.2,148.17,6.7489]
[1719902874843,6.34278075,148.23,148.17,100.0]
[1719902875033,16.8596,148.29,148.22,6.7467]
[1719902875034,6.7446,148.27,148.22,6.7467]
[1719902875217,0.7416782,148.26,148.19,112.29]
[1719902875419,0.7416782,148.27,148.23,6.7461]
[1719902875619,13.0316782,148.27,148.23,6.7461]
[1719902875821,0.7416782,148.27,148.23,6.7461]
[1719902876020,13.0316782,148.27,148.24,6.7457]
[1719902876723,0.7416782,148.27,148.23,6.7461]
[1719902876950,33.0316782,148.27,148.23,6.7461]
[1719902877128,0.7416782,148.27,148.23,6.7461]
[1719902877327,23.1341782,148.28,148.23,6.7461]
[1719902877549,12.29,148.27,148.24,6.7457]
[1719902878150,28.6797782,148.28,148.24,6.7457]
[1719902878340,16.3897782,148.28,148.24,6.7457]
[1719902878544,16.3897782,148.28,148.24,19.0357]
[1719902878741,35.4238782,148.28,148.23,6.7461]
[1719902879057,20.0,148.27,148.23,19.0361]
[1719902879430,32.29,148.27,148.23,6.7461]
[1719902879652,39.7762782,148.27,148.22,16.8662]
[1719902879857,12.29,148.26,148.22,16.8662]
[1719902880064,12.29,148.26,148.22,23.6125]
[1719902880353,19.7765782,148.26,148.22,23.6125]
[1719902880556,19.0355,148.25,148.2,6.7472]
[1719902880847,19.0355,148.25,148.19,29.1598]
[1719902880848,0.7416782,148.25,148.21,6.747]
[1719902881032,33.0316782,148.25,148.21,6.747]
[1719902882862,20.7416782,148.25,148.21,6.747]
[1719902883037,33.0316782,148.25,148.22,6.7465]
[1719902884762,33.0316782,148.25,148.21,23.6146]
[1719902888150,20.0,148.25,148.23,6.7462]
[1719902888455,20.0,148.27,148.26,6.7449]
[1719902888676,32.29,148.27,148.22,12.29]
[1719902888828,20.0,148.27,148.25,16.8631]
[1719902889551,20.7416782,148.27,148.24,6.7456]
[1719902889747,13.0316782,148.26,148.22,16.8662]
[1719902890054,13.0316782,148.26,148.22,23.6128]
[1719902890254,0.7416782,148.26,148.22,16.8662]
[1719902890462,13.0316782,148.26,148.23,6.7461]
[1719902890951,0.7416782,148.26,148.23,6.7461]
[1719902891157,13.0316782,148.26,148.23,6.7461]
[1719902892954,0.7416782,148.26,148.23,6.7461]
[1719902893153,13.0316782,148.26,148.23,6.7461]
[1719902893855,13.0316782,148.26,148.24,6.7456]
[1719902894745,0.7416782,148.26,148.24,6.7456]
[1719902895158,20.7416782,148.27,148.24,6.7456]
[1719902895554,12.29,148.25,148.22,16.8662]
[1719902896370,12.29,148.25,148.22,23.6125]
[1719902896759,0.7416782,148.26,148.23,6.7462]
[1719902897063,13.0316782,148.26,148.23,6.7462]
[1719902897770,0.7416782,148.26,148.23,6.7462]
[1719902898485,0.7416782,148.26,148.22,16.8662]
[1719902898486,12.29,148.25,148.22,23.6127]
[1719902898775,0.7416782,148.24,148.22,23.6127]
[1719902899367,12.29,148.23,148.19,16.8696]
[1719902899539,0.7416782,148.22,148.19,16.8696]
[1719902899736,0.7416782,148.22,148.19,23.6172]
[1719902900251,0.7416782,148.22,148.2,6.7475]
[1719902900781,0.7416782,148.22,148.21,6.7471]
[1719902902372,0.7416782,148.22,148.2,6.7474]
[1719902902554,0.7416782,148.22,148.16,16.8727]
[1719902902555,13.0316782,148.22,148.16,16.8727]
[1719902902752,6.7477,148.2,148.15,6.7499]
[1719902902984,20.7416782,148.19,148.15,6.7499]
[1719902903157,27.4897782,148.19,148.15,6.7499]
[1719902903361,12.29,148.18,148.15,6.7499]
[1719902903690,0.7416782,148.17,148.16,6.7494]
[1719902903859,13.0316782,148.18,148.16,6.7494]
[1719902905997,13.0316782,148.18,148.15,16.8743]
[1719902905998,20.0,148.19,148.17,16.8721]
[1719902906291,12.29,148.21,148.18,6.7482]
[1719902906487,0.7416782,148.2,148.18,6.7482]
[1719902906784,0.7416782,148.2,148.17,16.8721]
[1719902906986,13.0316782,148.2,148.17,16.8721]
[1719902907986,13.0316782,148.2,148.17,23.6209]
[1719902908355,0.7416782,148.2,148.17,23.6209]
[1719902908587,20.7416782,148.2,148.17,23.6209]
[1719902908755,33.0316782,148.2,148.17,23.6209]
[1719902908959,20.7416782,148.2,148.17,23.6209]
[1719902909189,28.9137,148.19,148.13,16.8763]
[1719902909359,6.7498,148.16,148.11,6.7516]
[1719902909559,7.4916782,148.15,148.1,35.9222]
[1719902909762,0.7416782,148.14,148.1,35.9222]
[1719902909995,7.4920782,148.14,148.1,16.8802]
[1719902910188,0.7416782,148.14,148.1,35.9221]
[1719902910394,0.7416782,148.14,148.1,16.8802]
[1719902910395,19.7821782,148.14,148.1,16.8802]
[1719902910697,13.0316782,148.13,148.1,16.8802]
[1719902910871,13.0316782,148.13,148.1,23.6323]
[1719902911293,0.7416782,148.13,148.1,23.6323]
[1719902913071,32.29,148.14,148.11,6.7517]
[1719902913273,20.0,148.14,148.11,6.7517]
[1719902913492,20.7416782,148.14,148.11,6.7517]
[1719902913991,20.7416782,148.14,148.1,35.9222]
[1719902914999,20.7416782,148.14,148.11,6.7516]
[1719902915872,20.0,148.14,148.11,6.7516]
[1719902917786,20.0,148.14,148.1,23.6322]
[1719902919207,20.0,148.14,148.11,6.7516]
[1719902919999,20.0,148.14,148.1,23.6322]
[1719902922308,26.7504,148.14,148.1,23.6322]
[1719902923609,6.7508,148.13,148.1,16.8802]
[1719902923794,0.7416782,148.12,148.07,16.8831]
[1719902924106,19.7830782,148.12,148.07,35.9262]
[1719902924313,19.0414,148.12,148.08,6.753]
[1719902924873,6.7514,148.12,148.08,19.043]
[1719902925580,19.7825782,148.13,148.09,6.7525]
[1719902925780,7.4925782,148.13,148.09,6.7525]
[1719902927685,7.4925782,148.13,148.09,19.0425]
[1719902928121,7.4925782,148.13,148.09,6.7525]
[1719902928780,0.7416782,148.13,148.1,6.7521]
[1719902928998,13.0316782,148.13,148.1,6.7521]
[1719902929822,19.7824782,148.13,148.09,23.6336]
[1719902930101,0.7416782,148.13,148.09,23.6336]
[1719902930291,0.7416782,148.13,148.1,6.7521]
[1719902930814,0.7416782,148.13,148.09,35.9236]
[1719902931105,7.4925782,148.13,148.09,6.7525]
[1719902932605,19.7825782,148.13,148.09,6.7525]
[1719902932811,12.29,148.12,148.09,6.7525]
[1719902932984,12.29,148.1,148.05,29.1757]
[1719902933310,13.0316782,148.1,148.02,16.8893]
[1719902933491,6.7535,148.07,148.03,6.7553]
[1719902933816,7.4947782,148.08,148.04,6.7549]
[1719902934106,20.0,148.07,148.04,6.7549]
[1719902934506,20.7416782,148.07,148.04,6.7549]
[1719902935299,20.0,148.07,148.05,6.7544]
[1719902935722,20.0,148.07,148.04,6.7548]
[1719902936192,20.7416782,148.07,148.03,19.0452]
[1719902936389,33.0316782,148.07,148.03,6.7552]
[1719902937716,33.0316782,148.07,148.04,6.7548]
[1719902938008,20.7416782,148.07,148.04,6.7548]
[1719902940223,20.7416782,148.07,148.03,19.0452]
[1719902940388,27.4953782,148.07,148.03,19.0452]
[1719902940589,20.7416782,148.07,147.98,100.0]
[1719902940784,12.29,148.04,148.0,6.7564]
[1719902941019,19.7870782,148.03,147.99,23.6493]
[1719902941312,12.29,148.03,147.99,23.6493]
[1719902941511,13.0316782,148.03,147.99,23.6493]
[1719902941992,13.0316782,148.03,148.0,6.7566]
[1719902942192,0.7416782,148.03,148.0,6.7566]
[1719902943413,13.0316782,148.03,147.98,100.0]
[1719902943606,13.0316782,148.03,147.99,6.7568]
[1719902943807,0.7416782,148.03,147.99,6.7568]
[1719902944001,28.3335,148.02,147.98,123.6514]
[1719902944316,28.3335,148.02,147.99,6.7571]
[1719902945406,16.0435,148.02,147.99,6.7571]
[1719902945611,16.0435,148.02,148.0,6.7567]
[1719902945814,16.0435,148.02,147.99,6.7571]
[1719902946192,16.0435,148.02,147.98,100.0]
[1719902946392,16.0435,148.02,147.99,6.7571]
[1719902948501,16.0435,148.02,148.0,6.7567]
[1719902948705,13.7811782,148.05,148.01,6.7563]
[1719902949019,20.7416782,148.04,148.01,6.7563]
[1719902949201,20.7416782,148.04,148.0,19.0466]
[1719902949514,33.0316782,148.04,148.0,6.7566]
[1719902950307,39.7865782,148.04,148.0,6.7566]
[1719902950511,27.4965782,148.04,147.99,23.6494]
[1719902950702,12.29,148.02,147.99,23.6494]
[1719902950903,13.0316782,148.02,147.99,23.6494]
[1719902951292,0.7416782,148.01,147.99,23.6494]
[1719902952394,12.29,148.02,147.99,23.6494]
[1719902952608,12.29,148.02,148.0,6.7567]
[1719902952808,20.0,148.04,148.01,6.7561]
[1719902953015,33.0316782,148.04,148.01,6.7561]
[1719902953695,39.7866782,148.04,148.0,6.7567]
[1719902953902,12.29,148.03,147.99,23.6493]
[1719902954210,0.7416782,148.02,148.0,6.7567]
[1719902954406,0.7416782,148.02,147.99,23.6493]
[1719902954709,13.0316782,148.02,147.99,23.6493]
[1719902955497,0.7416782,148.01,147.99,23.6493]
[1719902955915,0.7416782,148.01,147.98,6.7575]
[1719902956214,12.29,148.0,147.98,6.7575]
[1719902956409,33.0316782,148.01,147.98,6.7575]
[1719902956715,32.29,148.01,147.98,6.7575]
[1719902957018,20.0,148.01,147.99,6.7571]
[1719902957197,32.29,148.03,148.0,6.7567]
[1719902957406,0.7416782,148.02,148.0,6.7567]
[1719902957915,0.7416782,148.02,147.99,6.757]
[1719902960128,7.4976782,148.02,147.98,35.9412]
[1719902960425,20.7416782,148.01,147.98,23.6512]
[1719902961128,20.0,148.01,147.98,23.6512]
[1719902961304,20.7416782,148.01,147.98,23.6512]
[1719902961698,20.0,148.01,147.99,6.7568]
[1719902962023,32.29,148.02,147.99,6.7568]
[1719902962229,20.0,148.02,147.99,6.7568]
[1719902962527,20.7416782,148.02,147.99,6.7568]
[1719902963526,20.0,148.02,147.99,6.7568]
[1719902964706,32.29,148.02,147.99,6.7568]
[1719902964909,0.7416782,148.01,147.98,16.8938]
[1719902965429,19.7879782,148.01,147.98,16.8938]
[1719902965927,26.7567,148.0,147.96,6.7584]
[1719902966105,13.0316782,147.99,147.95,16.8968]
[1719902966305,12.29,147.99,147.95,16.8968]
[1719902966624,19.0475,147.99,147.95,23.6555]
[1719902966820,12.29,147.99,147.95,23.6555]
[1719902967009,19.0472,147.99,147.95,23.6555]
[1719902967624,0.7416782,147.98,147.95,23.6555]
[1719902967815,13.0316782,147.98,147.95,23.6555]
[1719902968527,12.29,147.98,147.96,6.7585]
[1719902968827,13.0316782,147.99,147.96,6.7585]
[1719902970527,19.7889782,147.99,147.95,23.6558]
[1719902974128,13.0316782,147.99,147.95,16.8968]
[1719902974332,19.0477,147.98,147.94,6.7594]
[1719902974515,0.7416782,147.97,147.94,6.7594]
[1719902976932,0.7416782,147.98,147.95,6.759]
[1719902978531,7.4994782,147.98,147.94,16.8984]
[1719902978725,7.4994782,147.98,147.94,35.9477]
[1719902978932,19.7889782,147.99,147.95,6.759]
[1719902979138,0.7416782,147.98,147.95,6.759]
[1719902979334,19.7896782,147.98,147.94,16.8984]
[1719902979538,19.7896782,147.98,147.94,23.6574]
[1719902979539,19.048,147.98,147.94,23.6574]
[1719902979719,19.0473,147.99,147.94,35.9474]
[1719902979918,0.7416782,147.98,147.94,35.9474]
[1719902980140,0.7416782,147.98,147.95,6.7589]
[1719902981633,0.7416782,147.98,147.94,35.9477]
[1719902982836,7.4993782,147.98,147.94,35.9477]
[1719902983423,0.7416782,147.98,147.95,6.759]
[1719902984150,7.4992782,147.98,147.94,35.9477]
[1719902984654,0.7416782,147.98,147.95,6.7589]
[1719902984845,0.7416782,147.98,147.94,29.1884]
[1719902985032,0.7416782,147.99,147.94,29.1884]
[1719902985619,0.7416782,147.99,147.96,6.7583]
[1719902986235,0.7416782,147.99,147.97,6.758]
[1719902986449,0.7416782,147.99,147.96,23.6545]
[1719902992149,0.7416782,147.99,147.96,16.8961]
[1719902993656,0.7416782,147.99,147.96,23.6545]
[1719902994045,7.4988782,147.99,147.96,16.8961]
[1719902997051,26.7568,148.0,147.96,23.6546]
[1719902997352,19.0472,147.99,147.96,16.8961]
[1719902998954,19.0472,147.99,147.95,6.7587]
[1719902999160,7.4993782,147.98,147.94,6.7593]
[1719902999856,0.7416782,147.98,147.95,6.7589]
[1719903001957,19.0483,147.97,147.93,23.6585]
[1719903002446,0.7416782,147.96,147.93,23.6585]
[1719903002759,6.7578,147.98,147.94,6.7593]
[1719903002950,0.7416782,147.97,147.95,6.759]
[1719903003377,0.7416782,147.97,147.94,6.7593]
[1719903003539,0.7416782,147.97,147.95,6.759]
[1719903003743,20.7416782,147.98,147.95,6.759]
[1719903005139,20.0,147.98,147.96,6.7583]
[1719903005345,20.7416782,147.99,147.96,6.7583]
[1719903005940,20.0,147.99,147.96,6.7583]
[1719903006639,20.0,147.99,147.95,29.1868]
[1719903006850,20.0,147.99,147.96,6.7584]
[1719903007246,26.7572,147.99,147.95,6.7588]
[1719903007644,6.7578,147.98,147.94,35.9472]
[1719903007862,33.0316782,147.99,147.94,29.1879]
[1719903008263,0.7416782,148.04,148.03,6.7553]
[1719903008451,16.167,148.05,148.04,6.7549]
[1719903008649,16.167,148.05,148.0,100.0]
[1719903008947,6.7544,148.06,148.02,12.29]
[1719903009149,19.7852782,148.07,148.02,19.0457]
[1719903009454,16.6526,148.09,148.05,19.0441]
[1719903009658,6.7537,148.07,148.02,6.7555]
[1719903009860,0.7416782,148.06,148.02,19.0455]
[1719903010061,0.7416782,148.08,148.03,12.29]
[1719903010235,19.7848782,148.08,148.03,16.8875]
[1719903010572,19.7848782,148.08,148.03,35.9327]
[1719903011159,13.0316782,148.08,148.04,6.7548]
[1719903011533,0.7416782,148.08,148.04,6.7548]
[1719903011739,0.7416782,148.08,148.04,19.0448]
[1719903013964,0.7416782,148.08,148.04,6.7548]
[1719903014260,7.4947782,148.08,148.04,19.0448]
[1719903014760,19.7847782,148.08,148.04,6.7548]
[1719903014962,13.0316782,148.08,148.04,6.7548]
[1719903015174,13.0316782,148.08,148.05,6.7544]
[1719903015545,13.0316782,148.08,148.04,6.7548]
[1719903016560,7.4947782,148.08,148.04,6.7548]
[1719903016755,6.7538,148.07,148.03,16.8875]
[1719903016959,0.7416782,148.06,148.03,16.8875]
[1719903017178,19.7848782,148.08,148.03,35.9327]
[1719903017344,0.7416782,148.07,148.03,35.9327]
[1719903017761,0.7416782,148.07,148.04,6.7548]
[1719903017970,13.0316782,148.08,148.05,6.7543]
[1719903018469,0.7416782,148.08,148.05,6.7543]
[1719903018863,0.7416782,148.08,148.04,19.0448]
[1719903021547,13.0316782,148.08,148.04,6.7548]
[1719903022375,19.7847782,148.08,148.04,6.7548]
[1719903023467,12.29,148.05,147.99,6.757]